[Event "11th LCC Super Blitz 2019"]
[Site "London"]
[Date "2019.12.08"]
[Round "8.6"]
[White "Petrov, Vladimir Sergeev"]
[Black "Young, Daniel J"]
[Result "1-0"]
[ECO "B90"]
[WhiteElo "2355"]
[BlackElo "1947"]
[Annotator "NA"]
[PlyCount "47"]
[EventDate "2019.12.08"]
[EventType "swiss"]
[EventCountry "ENG"]
[SourceTitle "playchess.com"]
[Source "ChessBase"]
[SourceQuality "1"]
[TimeControl "180+2"]

1. e4 {[%emt 0:00:00]} c5 {[%emt 0:00:00]} 2. Nf3 {[%emt 0:00:00]} d6 {[%emt 0:00:00]} 3. d4 {[%emt 0:00:01]} cxd4 {[%emt 0:00:00]} 4. Nxd4 {[%emt 0:00:02]} Nf6 {[%emt 0:00:01]} 5. Nc3 {[%emt 0:00:02]} a6 {[%emt 0:00:00]} 6. Be3 {[%emt 0:00:02]} e5 {[%emt 0:00:01]} 7. Nb3 {[%emt 0:00:04]} Be6 {[%emt 0:00:01]} 8. h3 {[%emt 0:00:01]} Be7 {[%emt 0:00:03]} 9. f4 {[%emt 0:00:03]} exf4 {[%emt 0:00:08]} 10. Bxf4 {[%emt 0:00:01]} Nc6 {[%emt 0:00:01]} 11. Qe2 {[%emt 0:00:12]} Ne5 {[%emt 0:00:16]} 12. O-O-O {[%emt 0:00:18]} Qc7 {[%emt 0:00:20]} 13. g4 {[%emt 0:00:06]} Rc8 {[%emt 0:00:37]} 14. g5 {[%emt 0:00:25]} Nfd7 {[%emt 0:00:01]} 15. Qg2 {[%emt 0:00:09]} Nb6 {[%emt 0:00:25]} 16. Nd4 {[%emt 0:00:14]} Nbc4 {[%emt 0:00:09]} 17. Nd5 {[%emt 0:00:21]} Bxd5 {[%emt 0:00:13]} 18. exd5 {[%emt 0:00:02]} Qa5 {[%emt 0:00:47]} 19. Kb1 {[%emt 0:00:25]} Qb6 {[%emt 0:00:15]} 20. Nb3 {[%emt 0:00:09]} a5 {[%emt 0:00:07]} 21. a4 {[%emt 0:00:05]} Qb4 {[%emt 0:00:04]} 22. Bxe5 {[%emt 0:00:03]} Nxe5 {[%emt 0:00:04]} 23. Bb5+ {[%emt 0:00:01]} Kf8 {[%emt 0:00:03]} 24. Rhf1 {[%emt 0:00:06]} 1-0

[Event "11th LCC Super Blitz 2019"]
[Site "London"]
[Date "2019.12.08"]
[Round "8.6"]
[White "Nettleton, Charlie B"]
[Black "Mohnblatt, Nicolas"]
[Result "0-1"]
[ECO "C02"]
[WhiteElo "2021"]
[BlackElo "1689"]
[Annotator "NA"]
[PlyCount "73"]
[EventDate "2019.12.08"]
[EventType "swiss"]
[EventCountry "ENG"]
[SourceTitle "playchess.com"]
[Source "ChessBase"]
[SourceQuality "1"]
[TimeControl "180+2"]

1. e4 {[%emt 0:00:00]} e6 {[%emt 0:00:00]} 2. d4 {[%emt 0:00:00]} d5 {[%emt 0:00:01]} 3. e5 {[%emt 0:00:02]} c5 {[%emt 0:00:01]} 4. Nf3 {[%emt 0:00:01]} Nc6 {[%emt 0:00:01]} 5. Bd3 {[%emt 0:00:01]} Bd7 {[%emt 0:00:06]} 6. O-O {[%emt 0:00:02]} cxd4 {[%emt 0:00:14]} 7. Re1 {[%emt 0:00:02]} Bc5 {[%emt 0:00:07]} 8. a3 {[%emt 0:00:01]} a5 {[%emt 0:00:02]} 9. Nbd2 {[%emt 0:00:01]} a4 {[%emt 0:00:05]} 10. Nf1 {[%emt 0:00:02]} Qc7 {[%emt 0:00:05]} 11. Ng3 {[%emt 0:00:05]} Nge7 {[%emt 0:00:05]} 12. Nh5 {[%emt 0:00:09]} O-O-O {[%emt 0:00:32]} 13. b4 {[%emt 0:00:07]} Bb6 {[%emt 0:00:14]} 14. Bb2 {[%emt 0:00:10]} h6 {[%emt 0:00:23]} 15. Bf1 {[%emt 0:00:31]} Nf5 {[%emt 0:00:12]} 16. Ng3 {[%emt 0:00:07]} Nxg3 {[%emt 0:00:05]} 17. hxg3 {[%emt 0:00:01]} f6 {[%emt 0:00:09]} 18. Qe2 {[%emt 0:00:24]} fxe5 {[%emt 0:00:27]} 19. Nxe5 {[%emt 0:00:02]} Nxe5 {[%emt 0:00:04]} 20. Qxe5 {[%emt 0:00:02]} Qxe5 {[%emt 0:00:01]} 21. Rxe5 {[%emt 0:00:01]} Bc7 {[%emt 0:00:02]} 22. Ree1 {[%emt 0:00:05]} e5 {[%emt 0:00:01]} 23. c4 {[%emt 0:00:13]} dxc3 {[%emt 0:00:09]} 24. Bxc3 {[%emt 0:00:02]} d4 {[%emt 0:00:01]} 25. Bb2 {[%emt 0:00:01]} Bc6 {[%emt 0:00:01]} 26. Rac1 {[%emt 0:00:03]} Kb8 {[%emt 0:00:01]} 27. Bd3 {[%emt 0:00:03]} g5 {[%emt 0:00:08]} 28. b5 {[%emt 0:00:07]} Bd5 {[%emt 0:00:01]} 29. b6 {[%emt 0:00:07]} Bd6 {[%emt 0:00:03]} 30. Bb5 {[%emt 0:00:03]} Bb3 {[%emt 0:00:03]} 31. Bc4 {[%emt 0:00:09]} Bxc4 {[%emt 0:00:04]} 32. Rxc4 {[%emt 0:00:01]} Rhf8 {[%emt 0:00:05]} 33. Rxa4 {[%emt 0:00:01]} Bc5 {[%emt 0:00:02]} 34. Rc4 {[%emt 0:00:05]} Bxb6 {[%emt 0:00:02]} 35. Rxe5 {[%emt 0:00:02]} d3 {[%emt 0:00:02]} 36. Rc1 {[%emt 0:00:23]} Rxf2 {[%emt 0:00:07]} 37. Re6 {[%emt 0:00:40]} 0-1

[Event "11th LCC Super Blitz 2019"]
[Site "London"]
[Date "2019.12.08"]
[Round "8.6"]
[White "Rushbrooke, Remy"]
[Black "Onslow, Teddy"]
[Result "0-1"]
[ECO "D01"]
[WhiteElo "1877"]
[BlackElo "1647"]
[Annotator "NA"]
[PlyCount "67"]
[EventDate "2019.12.08"]
[EventType "swiss"]
[EventCountry "ENG"]
[SourceTitle "playchess.com"]
[Source "ChessBase"]
[SourceQuality "1"]
[TimeControl "180+2"]

1. d4 {[%emt 0:00:00]} d5 {[%emt 0:00:00]} 2. Nc3 {[%emt 0:00:01]} Nf6 {[%emt 0:00:02]} 3. Bg5 {[%emt 0:00:01]} Bf5 {[%emt 0:00:09]} 4. Bxf6 {[%emt 0:00:07]} exf6 {[%emt 0:00:01]} 5. e3 {[%emt 0:00:01]} c6 {[%emt 0:00:01]} 6. Bd3 {[%emt 0:00:02]} Bxd3 {[%emt 0:00:03]} 7. Qxd3 {[%emt 0:00:01]} Bd6 {[%emt 0:00:01]} 8. Nge2 {[%emt 0:00:09]} a5 {[%emt 0:00:06]} 9. g4 {[%emt 0:00:23]} Qe7 {[%emt 0:00:11]} 10. Ng3 {[%emt 0:00:07]} Bxg3 {[%emt 0:00:12]} 11. hxg3 {[%emt 0:00:01]} h6 {[%emt 0:00:01]} 12. O-O-O {[%emt 0:00:04]} Nd7 {[%emt 0:00:02]} 13. Rde1 {[%emt 0:00:21]} O-O-O {[%emt 0:00:31]} 14. e4 {[%emt 0:00:22]} dxe4 {[%emt 0:00:00]} 15. Nxe4 {[%emt 0:00:19]} Rhe8 {[%emt 0:00:43]} 16. Qc3 {[%emt 0:00:04]} Nb8 {[%emt 0:00:34]} 17. Qxa5 {[%emt 0:00:21]} Rxd4 {[%emt 0:00:06]} 18. Nd6+ {[%emt 0:00:14]} Rxd6 {[%emt 0:00:29]} 19. Rxe7 {[%emt 0:00:01]} Rxe7 {[%emt 0:00:00]} 20. Re1 {[%emt 0:00:05]} Rxe1+ {[%emt 0:00:14]} 21. Qxe1 {[%emt 0:00:01]} Re6 {[%emt 0:00:04]} 22. Qd2 {[%emt 0:00:01]} Kc7 {[%emt 0:00:02]} 23. Qf4+ {[%emt 0:00:04]} Kc8 {[%emt 0:00:01]} 24. Qd4 {[%emt 0:00:06]} Nd7 {[%emt 0:00:01]} 25. f4 {[%emt 0:00:03]} c5 {[%emt 0:00:02]} 26. Qd3 {[%emt 0:00:06]} Kc7 {[%emt 0:00:00]} 27. Qh7 {[%emt 0:00:09]} c4 {[%emt 0:00:09]} 28. Qxg7 {[%emt 0:00:06]} Nc5 {[%emt 0:00:00]} 29. Qxf7+ {[%emt 0:00:04]} Kc6 30. f5 {[%emt 0:00:05]} Rd6 {[%emt 0:00:02]} 31. Qxc4 {[%emt 0:00:03]} b5 {[%emt 0:00:00]} 32. Qf4 {[%emt 0:00:06]} Rd5 {[%emt 0:00:04]} 33. Qxh6 {[%emt 0:00:05]} Ne4 {[%emt 0:00:01]} 34. c3 {[%emt 0:00:05]} 0-1

[Event "11th LCC Super Blitz 2019"]
[Site "London"]
[Date "2019.12.08"]
[Round "8.7"]
[White "Kennedy, Craig"]
[Black "Joslin, Tim"]
[Result "1-0"]
[ECO "A22"]
[WhiteElo "1899"]
[BlackElo "1822"]
[Annotator "NA"]
[PlyCount "61"]
[EventDate "2019.12.08"]
[EventType "swiss"]
[EventCountry "ENG"]
[SourceTitle "playchess.com"]
[Source "ChessBase"]
[SourceQuality "1"]
[TimeControl "180+2"]

1. g3 {[%emt 0:00:00]} d5 {[%emt 0:00:02]} 2. Bg2 {[%emt 0:00:02]} e5 {[%emt 0:00:00]} 3. c4 {[%emt 0:00:04]} Nf6 {[%emt 0:00:10]} 4. cxd5 Nxd5 {[%emt 0:00:01]} 5. Nc3 {[%emt 0:00:04]} c6 {[%emt 0:00:01]} 6. d3 {[%emt 0:00:03]} Be6 {[%emt 0:00:03]} 7. Nf3 {[%emt 0:00:02]} f6 {[%emt 0:00:03]} 8. O-O {[%emt 0:00:02]} Bc5 {[%emt 0:00:02]} 9. Bd2 {[%emt 0:00:03]} Qd7 {[%emt 0:00:10]} 10. Rc1 {[%emt 0:00:04]} Bb6 {[%emt 0:00:05]} 11. Ne4 {[%emt 0:00:06]} Na6 {[%emt 0:00:13]} 12. a3 {[%emt 0:00:11]} O-O {[%emt 0:00:06]} 13. e3 {[%emt 0:00:15]} Bh3 {[%emt 0:00:10]} 14. d4 {[%emt 0:00:07]} Bxg2 {[%emt 0:00:04]} 15. Kxg2 {[%emt 0:00:02]} exd4 {[%emt 0:00:06]} 16. Nxd4 {[%emt 0:00:05]} Rae8 {[%emt 0:00:15]} 17. Qf3 {[%emt 0:00:09]} f5 {[%emt 0:00:11]} 18. Ng5 {[%emt 0:00:08]} h6 {[%emt 0:00:06]} 19. Nh3 {[%emt 0:00:08]} Nc5 {[%emt 0:00:08]} 20. Nf4 {[%emt 0:00:12]} Ne4 {[%emt 0:00:05]} 21. Rfd1 {[%emt 0:00:08]} Qf7 {[%emt 0:00:19]} 22. Nxd5 {[%emt 0:00:05]} cxd5 {[%emt 0:00:03]} 23. Bb4 {[%emt 0:00:04]} Ng5 {[%emt 0:00:13]} 24. Qe2 {[%emt 0:00:11]} f4 {[%emt 0:00:01]} 25. gxf4 {[%emt 0:00:27]} Ne4 {[%emt 0:00:03]} 26. Bxf8 {[%emt 0:00:05]} Rxf8 {[%emt 0:00:05]} 27. f3 {[%emt 0:00:08]} Qg6+ {[%emt 0:00:03]} 28. Kh1 {[%emt 0:00:03]} Nf6 {[%emt 0:00:17]} 29. Rg1 {[%emt 0:00:03]} Qh5 {[%emt 0:00:02]} 30. Ne6 {[%emt 0:00:16]} Re8 {[%emt 0:00:08]} 31. Nxg7 {[%emt 0:00:11]} 1-0

[Event "11th LCC Super Blitz 2019"]
[Site "London"]
[Date "2019.12.08"]
[Round "8.7"]
[White "Stamatopoulos, Apostolos"]
[Black "John, Joshua"]
[Result "1-0"]
[ECO "D05"]
[WhiteElo "1782"]
[BlackElo "1694"]
[Annotator "NA"]
[PlyCount "65"]
[EventDate "2019.12.08"]
[EventType "swiss"]
[EventCountry "ENG"]
[SourceTitle "playchess.com"]
[Source "ChessBase"]
[SourceQuality "1"]
[TimeControl "180+2"]

1. d4 {[%emt 0:00:00]} Nf6 {[%emt 0:00:00]} 2. Nf3 {[%emt 0:00:00]} d5 {[%emt 0:00:00]} 3. e3 {[%emt 0:00:01]} e6 {[%emt 0:00:00]} 4. Bd3 {[%emt 0:00:01]} c5 {[%emt 0:00:01]} 5. b3 {[%emt 0:00:02]} Nc6 {[%emt 0:00:01]} 6. O-O {[%emt 0:00:01]} Be7 {[%emt 0:00:02]} 7. Bb2 {[%emt 0:00:02]} b6 {[%emt 0:00:01]} 8. Nbd2 {[%emt 0:00:05]} O-O {[%emt 0:00:02]} 9. a3 {[%emt 0:00:01]} Bb7 {[%emt 0:00:01]} 10. Ne5 {[%emt 0:00:02]} cxd4 {[%emt 0:00:19]} 11. exd4 {[%emt 0:00:02]} Rc8 {[%emt 0:00:01]} 12. f4 {[%emt 0:00:01]} Nxe5 {[%emt 0:00:34]} 13. fxe5 {[%emt 0:00:02]} Ne4 {[%emt 0:00:02]} 14. Bxe4 {[%emt 0:00:41]} dxe4 {[%emt 0:00:01]} 15. Re1 {[%emt 0:00:10]} Qc7 {[%emt 0:00:38]} 16. c4 {[%emt 0:00:07]} Qc6 {[%emt 0:00:21]} 17. Nxe4 {[%emt 0:00:13]} f5 {[%emt 0:00:01]} 18. exf6 {[%emt 0:00:01]} Bxf6 {[%emt 0:00:01]} 19. Qe2 {[%emt 0:00:08]} Rce8 {[%emt 0:00:36]} 20. Nxf6+ {[%emt 0:00:03]} Rxf6 {[%emt 0:00:18]} 21. d5 {[%emt 0:00:03]} Qc5+ {[%emt 0:00:01]} 22. Qe3 {[%emt 0:00:17]} Rg6 {[%emt 0:00:21]} 23. Qxc5 {[%emt 0:00:15]} bxc5 {[%emt 0:00:01]} 24. g3 {[%emt 0:00:01]} Kf7 {[%emt 0:00:10]} 25. Rf1+ {[%emt 0:00:23]} Ke7 {[%emt 0:00:04]} 26. Rae1 {[%emt 0:00:00]} Kd7 {[%emt 0:00:07]} 27. Rf7+ {[%emt 0:00:04]} Re7 {[%emt 0:00:03]} 28. dxe6+ {[%emt 0:00:10]} Rgxe6 {[%emt 0:00:01]} 29. Rxe7+ {[%emt 0:00:08]} Kxe7 {[%emt 0:00:04]} 30. Rxe6+ {[%emt 0:00:01]} Kxe6 {[%emt 0:00:00]} 31. Bxg7 {[%emt 0:00:01]} Kf5 {[%emt 0:00:10]} 32. Bf8 {[%emt 0:00:02]} Ke4 {[%emt 0:00:02]} 33. Bxc5 {[%emt 0:00:02]} 1-0

[Event "11th LCC Super Blitz 2019"]
[Site "London"]
[Date "2019.12.08"]
[Round "8.7"]
[White "Sheikh, Anum"]
[Black "Watson, Mikey J"]
[Result "0-1"]
[ECO "B13"]
[WhiteElo "1560"]
[BlackElo "1748"]
[Annotator "NA"]
[PlyCount "30"]
[EventDate "2019.12.08"]
[EventType "swiss"]
[EventCountry "ENG"]
[SourceTitle "playchess.com"]
[Source "ChessBase"]
[SourceQuality "1"]
[TimeControl "180+2"]

1. e4 {[%emt 0:00:00]} c6 {[%emt 0:00:00]} 2. d4 {[%emt 0:00:00]} d5 {[%emt 0:00:00]} 3. exd5 {[%emt 0:00:01]} cxd5 {[%emt 0:00:01]} 4. Bd3 {[%emt 0:00:02]} Nf6 {[%emt 0:00:01]} 5. Bf4 {[%emt 0:00:02]} Nc6 {[%emt 0:00:02]} 6. c3 {[%emt 0:00:00]} g6 {[%emt 0:00:01]} 7. Nf3 {[%emt 0:00:03]} Bg7 {[%emt 0:00:01]} 8. O-O {[%emt 0:00:03]} O-O {[%emt 0:00:02]} 9. Re1 {[%emt 0:00:07]} Bf5 {[%emt 0:00:10]} 10. Bxf5 {[%emt 0:00:07]} gxf5 {[%emt 0:00:01]} 11. Nbd2 {[%emt 0:00:13]} e6 {[%emt 0:00:02]} 12. Ne5 {[%emt 0:00:19]} Ne4 {[%emt 0:00:12]} 13. f3 {[%emt 0:00:05]} Nxe5 {[%emt 0:00:23]} 14. Bxe5 {[%emt 0:00:08]} Bxe5 {[%emt 0:00:32]} 15. dxe5 {[%emt 0:00:04]} Qb6+ {[%emt 0:00:03]} 0-1

[Event "11th LCC Super Blitz 2019"]
[Site "London"]
[Date "2019.12.08"]
[Round "8.8"]
[White "Mortazavi, Ali"]
[Black "Sandhu, Manvith"]
[Result "1-0"]
[ECO "B00"]
[WhiteElo "2333"]
[BlackElo "1673"]
[Annotator "NA"]
[PlyCount "44"]
[EventDate "2019.12.08"]
[EventType "swiss"]
[EventCountry "ENG"]
[SourceTitle "playchess.com"]
[Source "ChessBase"]
[SourceQuality "1"]
[TimeControl "180+2"]

1. e4 {[%emt 0:00:00]} Nc6 {[%emt 0:00:00]} 2. Nc3 {[%emt 0:00:00]} d6 {[%emt 0:00:02]} 3. d4 {[%emt 0:00:08]} Nf6 {[%emt 0:00:01]} 4. Bb5 {[%emt 0:00:02]} a6 {[%emt 0:00:06]} 5. Bxc6+ {[%emt 0:00:01]} bxc6 {[%emt 0:00:01]} 6. h3 {[%emt 0:00:00]} e6 {[%emt 0:00:04]} 7. f4 {[%emt 0:00:08]} Bb7 {[%emt 0:00:11]} 8. Qe2 {[%emt 0:00:06]} d5 {[%emt 0:00:24]} 9. e5 {[%emt 0:00:01]} Nd7 {[%emt 0:00:01]} 10. Nf3 {[%emt 0:00:02]} c5 {[%emt 0:00:01]} 11. Be3 {[%emt 0:00:07]} cxd4 {[%emt 0:00:02]} 12. Bxd4 {[%emt 0:00:02]} c5 {[%emt 0:00:11]} 13. Bf2 {[%emt 0:00:00]} Qb6 {[%emt 0:00:07]} 14. Rb1 {[%emt 0:00:06]} Qc7 {[%emt 0:00:09]} 15. O-O {[%emt 0:00:07]} Be7 {[%emt 0:00:02]} 16. Bh4 {[%emt 0:00:18]} Bxh4 {[%emt 0:00:03]} 17. Nxh4 {[%emt 0:00:01]} O-O {[%emt 0:00:06]} 18. Qg4 {[%emt 0:00:01]} d4 {[%emt 0:00:11]} 19. Ne2 {[%emt 0:00:05]} Nb6 {[%emt 0:00:09]} 20. f5 {[%emt 0:00:19]} Nc4 {[%emt 0:00:02]} 21. f6 {[%emt 0:00:05]} g6 {[%emt 0:00:06]} 22. Qg5 {[%emt 0:00:15]} Kh8 {[%emt 0:00:38]} 1-0

[Event "11th LCC Super Blitz 2019"]
[Site "London"]
[Date "2019.12.08"]
[Round "8.8"]
[White "Eames, Robert S"]
[Black "Nunn, Petra"]
[Result "1-0"]
[ECO "B76"]
[WhiteElo "2166"]
[BlackElo "1908"]
[Annotator "NA"]
[PlyCount "37"]
[EventDate "2019.12.08"]
[EventType "swiss"]
[EventCountry "ENG"]
[SourceTitle "playchess.com"]
[Source "ChessBase"]
[SourceQuality "1"]
[TimeControl "180+2"]

1. e4 {[%emt 0:00:02]} c5 {[%emt 0:00:00]} 2. Nf3 {[%emt 0:00:02]} d6 {[%emt 0:00:00]} 3. d4 {[%emt 0:00:02]} Nf6 {[%emt 0:00:01]} 4. Nc3 {[%emt 0:00:02]} cxd4 {[%emt 0:00:01]} 5. Nxd4 {[%emt 0:00:02]} g6 {[%emt 0:00:02]} 6. Be3 {[%emt 0:00:03]} Bg7 {[%emt 0:00:01]} 7. f3 {[%emt 0:00:02]} O-O {[%emt 0:00:02]} 8. Qd2 {[%emt 0:00:01]} Nc6 {[%emt 0:00:02]} 9. O-O-O {[%emt 0:00:09]} d5 {[%emt 0:00:00]} 10. Qe1 {[%emt 0:00:10]} e5 {[%emt 0:00:19]} 11. Nxc6 {[%emt 0:00:05]} bxc6 {[%emt 0:00:03]} 12. exd5 {[%emt 0:00:12]} Nxd5 {[%emt 0:00:12]} 13. Bc4 {[%emt 0:00:18]} Be6 {[%emt 0:00:04]} 14. Ne4 {[%emt 0:00:10]} Qc7 {[%emt 0:00:58]} 15. Bc5 {[%emt 0:00:07]} Rfd8 {[%emt 0:00:06]} 16. Qh4 {[%emt 0:00:19]} f5 {[%emt 0:01:06]} 17. Ng5 {[%emt 0:00:12]} Bf6 {[%emt 0:00:02]} 18. Nxe6 {[%emt 0:00:10]} Bxh4 {[%emt 0:00:02]} 19. Nxc7 {[%emt 0:00:02]} 1-0

[Event "11th LCC Super Blitz 2019"]
[Site "London"]
[Date "2019.12.08"]
[Round "8.8"]
[White "Royal, Shreyas"]
[Black "Manmay Chopra"]
[Result "1-0"]
[ECO "E70"]
[WhiteElo "1941"]
[BlackElo "1354"]
[Annotator "NA"]
[PlyCount "71"]
[EventDate "2019.12.08"]
[EventType "swiss"]
[EventCountry "ENG"]
[SourceTitle "playchess.com"]
[Source "ChessBase"]
[SourceQuality "1"]
[TimeControl "180+2"]

1. d4 {[%emt 0:00:00]} Nf6 {[%emt 0:00:00]} 2. c4 {[%emt 0:00:00]} g6 {[%emt 0:00:04]} 3. Nc3 {[%emt 0:00:00]} Bg7 {[%emt 0:00:00]} 4. e4 {[%emt 0:00:01]} d6 {[%emt 0:00:03]} 5. Nge2 O-O {[%emt 0:00:01]} 6. Ng3 {[%emt 0:00:02]} e5 {[%emt 0:00:02]} 7. d5 {[%emt 0:00:01]} Ne8 {[%emt 0:00:03]} 8. Be2 {[%emt 0:00:03]} f5 {[%emt 0:00:01]} 9. exf5 {[%emt 0:00:02]} gxf5 {[%emt 0:00:02]} 10. f4 {[%emt 0:00:01]} Nd7 {[%emt 0:00:09]} 11. O-O {[%emt 0:00:02]} e4 {[%emt 0:00:01]} 12. Be3 {[%emt 0:00:06]} Ndf6 {[%emt 0:00:02]} 13. Bd4 {[%emt 0:00:07]} a6 {[%emt 0:00:13]} 14. Qd2 {[%emt 0:00:06]} Qe7 {[%emt 0:00:01]} 15. Nd1 {[%emt 0:00:06]} Nd7 {[%emt 0:00:05]} 16. Ne3 {[%emt 0:00:05]} Bxd4 {[%emt 0:00:10]} 17. Qxd4 {[%emt 0:00:02]} Nb6 {[%emt 0:00:22]} 18. b4 {[%emt 0:00:11]} Ng7 {[%emt 0:00:01]} 19. c5 {[%emt 0:00:04]} Nd7 {[%emt 0:00:08]} 20. Rac1 {[%emt 0:00:17]} dxc5 {[%emt 0:00:10]} 21. bxc5 {[%emt 0:00:01]} Qf6 {[%emt 0:00:04]} 22. Qd2 {[%emt 0:00:11]} b6 {[%emt 0:00:06]} 23. d6 {[%emt 0:00:14]} Nxc5 {[%emt 0:00:10]} 24. dxc7 {[%emt 0:00:07]} Be6 {[%emt 0:00:05]} 25. Nd5 {[%emt 0:00:15]} Bxd5 {[%emt 0:00:13]} 26. Qxd5+ {[%emt 0:00:01]} Qe6 {[%emt 0:00:01]} 27. Bc4 {[%emt 0:00:24]} Qxd5 {[%emt 0:00:30]} 28. Bxd5+ {[%emt 0:00:02]} Kh8 {[%emt 0:00:01]} 29. Bxa8 {[%emt 0:00:01]} Rxa8 {[%emt 0:00:00]} 30. Rfd1 {[%emt 0:00:05]} Nge6 {[%emt 0:00:03]} 31. Nxf5 {[%emt 0:00:05]} Nxc7 {[%emt 0:00:01]} 32. Rd6 {[%emt 0:00:07]} Rf8 {[%emt 0:00:12]} 33. Ng3 {[%emt 0:00:04]} Rxf4 {[%emt 0:00:04]} 34. Rxb6 {[%emt 0:00:02]} N7e6 {[%emt 0:00:07]} 35. Rb8+ {[%emt 0:00:03]} Kg7 {[%emt 0:00:00]} 36. Nh5+ {[%emt 0:00:01]} 1-0

[Event "11th LCC Super Blitz 2019"]
[Site "London"]
[Date "2019.12.08"]
[Round "8.9"]
[White "Saidmurodov, Shahjahon"]
[Black "Dhemrait, Jagdeep"]
[Result "0-1"]
[ECO "B34"]
[WhiteElo "1812"]
[BlackElo "1834"]
[Annotator "NA"]
[PlyCount "48"]
[EventDate "2019.12.08"]
[EventType "swiss"]
[EventCountry "ENG"]
[SourceTitle "playchess.com"]
[Source "ChessBase"]
[SourceQuality "1"]
[TimeControl "180+2"]

1. e4 {[%emt 0:00:00]} c5 {[%emt 0:00:00]} 2. Nf3 {[%emt 0:00:00]} Nc6 {[%emt 0:00:00]} 3. d4 {[%emt 0:00:04]} cxd4 {[%emt 0:00:02]} 4. Nxd4 {[%emt 0:00:01]} g6 {[%emt 0:00:03]} 5. Nc3 {[%emt 0:00:05]} a6 {[%emt 0:00:00]} 6. Be3 {[%emt 0:00:08]} Bg7 {[%emt 0:00:02]} 7. Bc4 {[%emt 0:00:01]} e6 {[%emt 0:00:04]} 8. Nxc6 {[%emt 0:00:24]} bxc6 {[%emt 0:00:13]} 9. Bc5 {[%emt 0:00:23]} d5 {[%emt 0:00:10]} 10. exd5 {[%emt 0:00:08]} cxd5 {[%emt 0:00:18]} 11. Bb3 {[%emt 0:00:13]} Bd7 {[%emt 0:00:20]} 12. O-O {[%emt 0:00:29]} Ne7 {[%emt 0:00:04]} 13. Bxe7 {[%emt 0:00:30]} Qxe7 {[%emt 0:00:12]} 14. Nxd5 {[%emt 0:00:06]} exd5 {[%emt 0:00:08]} 15. Qxd5 {[%emt 0:00:01]} O-O {[%emt 0:00:14]} 16. Rfe1 {[%emt 0:00:11]} Be6 {[%emt 0:00:30]} 17. Qf3 {[%emt 0:00:17]} Bxb2 {[%emt 0:00:20]} 18. Rad1 {[%emt 0:00:02]} Rad8 {[%emt 0:00:15]} 19. Rxd8 {[%emt 0:00:13]} Rxd8 {[%emt 0:00:05]} 20. h4 {[%emt 0:00:16]} Qxh4 {[%emt 0:00:20]} 21. Bxe6 {[%emt 0:00:04]} fxe6 {[%emt 0:00:02]} 22. Qb3 {[%emt 0:00:05]} Bg7 {[%emt 0:00:13]} 23. Qxe6+ {[%emt 0:00:01]} Kh8 {[%emt 0:00:03]} 24. Qf7 {[%emt 0:00:04]} Rf8 {[%emt 0:00:16]} 0-1

[Event "11th LCC Super Blitz 2019"]
[Site "London"]
[Date "2019.12.08"]
[Round "8.9"]
[White "Phillips, David"]
[Black "Iyengar, Ilya"]
[Result "0-1"]
[ECO "A01"]
[WhiteElo "1810"]
[BlackElo "1984"]
[Annotator "NA"]
[PlyCount "55"]
[EventDate "2019.12.08"]
[EventType "swiss"]
[EventCountry "ENG"]
[SourceTitle "playchess.com"]
[Source "ChessBase"]
[SourceQuality "1"]
[TimeControl "180+2"]

1. b3 {[%emt 0:00:03]} Nf6 {[%emt 0:00:00]} 2. Bb2 {[%emt 0:00:01]} g6 {[%emt 0:00:00]} 3. Bxf6 {[%emt 0:00:04]} exf6 {[%emt 0:00:01]} 4. Nf3 {[%emt 0:00:07]} Bg7 {[%emt 0:00:01]} 5. c3 {[%emt 0:00:02]} O-O {[%emt 0:00:03]} 6. g3 {[%emt 0:00:02]} f5 {[%emt 0:00:03]} 7. Bg2 {[%emt 0:00:03]} Qf6 {[%emt 0:00:13]} 8. O-O {[%emt 0:00:08]} f4 {[%emt 0:00:02]} 9. d4 {[%emt 0:00:06]} fxg3 {[%emt 0:00:07]} 10. hxg3 {[%emt 0:00:07]} d5 {[%emt 0:00:02]} 11. Ne5 {[%emt 0:00:12]} c6 {[%emt 0:00:03]} 12. Nd2 {[%emt 0:00:09]} Bf5 {[%emt 0:00:14]} 13. Ndf3 {[%emt 0:00:07]} Nd7 {[%emt 0:00:52]} 14. Qd2 {[%emt 0:00:06]} Qe6 {[%emt 0:00:13]} 15. Nd3 {[%emt 0:00:30]} h6 {[%emt 0:00:24]} 16. Nf4 {[%emt 0:00:04]} Qe7 {[%emt 0:00:08]} 17. Nh4 {[%emt 0:00:03]} Bg4 {[%emt 0:00:23]} 18. Nf3 {[%emt 0:00:09]} Nf6 {[%emt 0:00:08]} 19. Ne5 {[%emt 0:00:08]} Bf5 {[%emt 0:00:07]} 20. Nfd3 {[%emt 0:00:18]} Ne4 {[%emt 0:00:04]} 21. Qc1 {[%emt 0:00:05]} Rae8 {[%emt 0:00:01]} 22. Bf3 {[%emt 0:00:26]} h5 {[%emt 0:00:03]} 23. Bg2 {[%emt 0:00:08]} h4 {[%emt 0:00:03]} 24. g4 {[%emt 0:00:08]} Bc8 {[%emt 0:00:01]} 25. f3 {[%emt 0:00:12]} Ng3 {[%emt 0:00:05]} 26. Rf2 {[%emt 0:00:02]} Kh7 {[%emt 0:00:08]} 27. Nf4 {[%emt 0:00:21]} g5 {[%emt 0:00:16]} 28. Nh5 {[%emt 0:00:03]} 0-1

[Event "11th LCC Super Blitz 2019"]
[Site "London"]
[Date "2019.12.08"]
[Round "8.9"]
[White "Srivastava, Arnav"]
[Black "Lovell, William Pm"]
[Result "1-0"]
[ECO "D26"]
[WhiteElo "1728"]
[BlackElo "1831"]
[Annotator "NA"]
[PlyCount "61"]
[EventDate "2019.12.08"]
[EventType "swiss"]
[EventCountry "ENG"]
[SourceTitle "playchess.com"]
[Source "ChessBase"]
[SourceQuality "1"]
[TimeControl "180+2"]

1. d4 {[%emt 0:03:13]} d5 2. c4 dxc4 3. e3 {[%emt 0:00:02]} e6 4. Bxc4 {[%emt 0:00:02]} Nf6 5. Nf3 a6 6. O-O b5 7. Bd3 {[%emt 0:00:01]} Bb7 8. Nc3 Nbd7 9. a3 Be7 10. b4 O-O {[%emt 0:00:03]} 11. Bb2 {[%emt 0:00:02]} Bd6 {[%emt 0:00:07]} 12. e4 {[%emt 0:00:02]} e5 {[%emt 0:00:03]} 13. d5 c6 {[%emt 0:00:03]} 14. Be2 {[%emt 0:00:01]} cxd5 15. exd5 Nb6 {[%emt 0:00:06]} 16. Qd2 {[%emt 0:00:12]} Re8 {[%emt 0:00:04]} 17. Rad1 {[%emt 0:00:21]} Nbxd5 {[%emt 0:00:21]} 18. Nxd5 {[%emt 0:00:09]} Nxd5 {[%emt 0:00:02]} 19. Rfe1 {[%emt 0:00:19]} Bc7 {[%emt 0:00:11]} 20. Bd3 {[%emt 0:00:10]} Nf4 {[%emt 0:00:16]} 21. Bxh7+ {[%emt 0:00:19]} Kxh7 {[%emt 0:00:02]} 22. Qc2+ Nd3 {[%emt 0:00:14]} 23. Rxd3 {[%emt 0:00:02]} Qf6 {[%emt 0:00:13]} 24. Rd6+ {[%emt 0:00:06]} Kg8 {[%emt 0:00:19]} 25. Rxf6 gxf6 26. Qf5 {[%emt 0:00:02]} Bxf3 {[%emt 0:00:05]} 27. gxf3 {[%emt 0:00:07]} Rad8 {[%emt 0:00:03]} 28. f4 {[%emt 0:00:11]} Rd2 {[%emt 0:00:01]} 29. Bc3 Rc2 {[%emt 0:00:02]} 30. Qxc2 {[%emt 0:00:02]} exf4 31. Rxe8+ {[%emt 0:00:01]} 1-0